[Event "Championnat d'Europe de Blitz"]
[Date "2024.12.09"]
[White "Domalchuk-Jonasson, Aleksandr"]
[Black "Janik, Igor"]
[WhiteElo "2377"]
[BlackElo "2515"]
[Round "7.32"]
[Result "1/2-1/2"]
[TimeControl "180+2"]

1. e4 {[%emt 00:00:01] [%clk 00:03:03]} c6 {[%emt 00:00:01] [%clk 00:03:04]} 2.
d4 {[%clk 00:03:03]} d5 {[%clk 00:03:05]} 3. exd5 {[%emt 00:00:02] [%clk
00:03:04]} cxd5 {[%clk 00:03:06]} 4. Bd3 {[%clk 00:03:05]} Nc6 {[%clk 00:03:08]}
5. c3 {[%clk 00:03:06]} g6 {[%clk 00:03:09]} 6. Nd2 {[%clk 00:03:07]} Bf5 {[%emt
00:00:03] [%clk 00:03:08]} 7. Bxf5 {[%emt 00:00:08] [%clk 00:03:01]} gxf5 {[%clk
00:03:09]} 8. Nb3 {[%emt 00:00:06] [%clk 00:02:58]} e6 {[%emt 00:00:01] [%clk
00:03:10]} 9. Nf3 {[%emt 00:00:05] [%clk 00:02:54]} Bd6 {[%emt 00:00:01] [%clk
00:03:10]} 10. O-O {[%emt 00:00:08] [%clk 00:02:49]} Qc7 {[%emt 00:00:02] [%clk
00:03:11]} 11. Bg5 {[%emt 00:00:17] [%clk 00:02:33]} h6 {[%emt 00:00:04] [%clk
00:03:09]} 12. Bh4 {[%clk 00:02:35]} Nge7 {[%emt 00:00:01] [%clk 00:03:10]} 13.
Qe2 {[%emt 00:00:27] [%clk 00:02:09]} Ng6 {[%emt 00:00:03] [%clk 00:03:10]} 14.
Bf6 {[%emt 00:00:02] [%clk 00:02:08]} Rg8 {[%emt 00:00:01] [%clk 00:03:11]} 15.
g3 {[%emt 00:00:24] [%clk 00:01:47]} Nf4 {[%emt 00:00:04] [%clk 00:03:09]} 16.
Qe3 {[%emt 00:00:12] [%clk 00:01:36]} Rg6 {[%emt 00:00:10] [%clk 00:03:01]} 17.
Be5 {[%emt 00:00:12] [%clk 00:01:27]} Nh3+ {[%emt 00:00:12] [%clk 00:02:51]} 18.
Kg2 {[%emt 00:00:08] [%clk 00:01:21]} f4 {[%emt 00:00:06] [%clk 00:02:46]} 19.
Qd2 {[%emt 00:00:28] [%clk 00:00:55]} Bxe5 {[%emt 00:00:05] [%clk 00:02:43]} 20.
dxe5 {[%emt 00:00:05] [%clk 00:00:52]} Ng5 {[%emt 00:01:14] [%clk 00:01:32]} 21.
Qxf4 {[%emt 00:00:35] [%clk 00:00:19]} Nxf3 {[%emt 00:00:03] [%clk 00:01:31]}
22. Qxf3 {[%emt 00:00:01] [%clk 00:00:20]} Nxe5 {[%clk 00:01:32]} 23. Qf4 {[%clk
00:00:21]} Rc8 {[%emt 00:00:01] [%clk 00:01:32]} 24. Nd4 {[%emt 00:00:04] [%clk
00:00:19]} Nc6 {[%emt 00:00:10] [%clk 00:01:24]} 25. Qxc7 {[%emt 00:00:04] [%clk
00:00:18]} Rxc7 {[%clk 00:01:26]} 26. Nb5 {[%emt 00:00:12] [%clk 00:00:08]} Rd7
{[%emt 00:00:01] [%clk 00:01:26]} 27. Rad1 {[%emt 00:00:02] [%clk 00:00:08]} Ke7
{[%emt 00:00:07] [%clk 00:01:21]} 28. f4 {[%emt 00:00:01] [%clk 00:00:10]} Rg8
{[%emt 00:00:06] [%clk 00:01:17]} 29. Rfe1 {[%emt 00:00:04] [%clk 00:00:08]} Kf6
{[%emt 00:00:07] [%clk 00:01:12]} 30. Kf3 {[%emt 00:00:02] [%clk 00:00:07]} Rc8
{[%emt 00:00:04] [%clk 00:01:10]} 31. Nd4 {[%emt 00:00:03] [%clk 00:00:06]} Na5
{[%emt 00:00:01] [%clk 00:01:11]} 32. Re2 {[%emt 00:00:05] [%clk 00:00:03]} Nc4
{[%emt 00:00:02] [%clk 00:01:11]} 33. Kf2 {[%emt 00:00:02] [%clk 00:00:03]} Nd6
{[%emt 00:00:01] [%clk 00:01:12]} 34. Nf3 {[%emt 00:00:02] [%clk 00:00:03]} Ne4+
{[%emt 00:00:01] [%clk 00:01:13]} 35. Kg2 {[%clk 00:00:05]} Rdc7 {[%emt
00:00:06] [%clk 00:01:09]} 36. Ne5 {[%emt 00:00:02] [%clk 00:00:04]} b5 {[%emt
00:00:03] [%clk 00:01:09]} 37. a3 {[%emt 00:00:01] [%clk 00:00:05]} a5 {[%emt
00:00:01] [%clk 00:01:10]} 38. Nd3 {[%emt 00:00:04] [%clk 00:00:03]} Ke7 {[%emt
00:00:05] [%clk 00:01:06]} 39. Kf3 {[%emt 00:00:01] [%clk 00:00:05]} f6 {[%emt
00:00:09] [%clk 00:00:59]} 40. Nf2 {[%emt 00:00:02] [%clk 00:00:05]} f5 {[%emt
00:00:05] [%clk 00:00:56]} 41. Nd3 {[%clk 00:00:06]} Kf6 {[%clk 00:00:57]} 42.
Ne5 {[%emt 00:00:01] [%clk 00:00:07]} Rb7 {[%emt 00:00:04] [%clk 00:00:55]} 43.
Rd4 {[%emt 00:00:03] [%clk 00:00:05]} h5 {[%emt 00:00:03] [%clk 00:00:53]} 44.
Nd3 {[%emt 00:00:04] [%clk 00:00:03]} Rc4 {[%emt 00:00:05] [%clk 00:00:50]} 45.
Nf2 {[%emt 00:00:04]} Nd6 {[%emt 00:00:07] [%clk 00:00:44]} 46. Red2 {[%emt
00:00:02] [%clk 00:00:03]} b4 {[%emt 00:00:02] [%clk 00:00:45]} 47. axb4 {[%emt
00:00:01] [%clk 00:00:04]} axb4 {[%clk 00:00:46]} 48. Nd1 {[%emt 00:00:03] [%clk
00:00:03]} bxc3 {[%emt 00:00:05] [%clk 00:00:43]} 49. bxc3 {[%clk 00:00:04]}
Rbc7 {[%emt 00:00:03] [%clk 00:00:42]} 50. Rxc4 {[%emt 00:00:01] [%clk
00:00:05]} Rxc4 {[%clk 00:00:43]} 51. Rd3 {[%clk 00:00:06]} Ne4 {[%emt 00:00:04]
[%clk 00:00:41]} 52. h3 {[%emt 00:00:02] [%clk 00:00:06]} Ra4 {[%emt 00:00:04]
[%clk 00:00:38]} 53. g4 {[%emt 00:00:01] [%clk 00:00:07]} hxg4+ {[%clk
00:00:39]} 54. hxg4 {[%clk 00:00:09]} fxg4+ {[%clk 00:00:41]} 55. Kxg4 {[%emt
00:00:01] [%clk 00:00:10]} Ra1 {[%emt 00:00:01] [%clk 00:00:42]} 56. Kf3 {[%emt
00:00:02] [%clk 00:00:09]} Rc1 {[%emt 00:00:02] [%clk 00:00:42]} 57. Ke3 {[%emt
00:00:07] [%clk 00:00:04]} Kf5 {[%emt 00:00:06] [%clk 00:00:38]} 58. Kf3 {[%emt
00:00:02] [%clk 00:00:05]} Kf6 {[%emt 00:00:04] [%clk 00:00:36]} 59. Ke3 {[%clk
00:00:06]} Rc2 {[%emt 00:00:04] [%clk 00:00:35]} 60. Kf3 {[%clk 00:00:08]} Nc5
{[%emt 00:00:12] [%clk 00:00:25]} 61. Re3 {[%emt 00:00:03] [%clk 00:00:06]} Rc1
{[%emt 00:00:02] [%clk 00:00:25]} 62. Nf2 {[%emt 00:00:04] [%clk 00:00:04]} Kf7
{[%emt 00:00:14] [%clk 00:00:13]} 63. Ng4 {[%clk 00:00:05]} Ne4 {[%clk
00:00:14]} 64. c4 {[%emt 00:00:04] [%clk 00:00:03]} Nd2+ {[%emt 00:00:02] [%clk
00:00:14]} 65. Ke2 {[%clk 00:00:04]} Nxc4 {[%clk 00:00:16]} 66. Ne5+ {[%emt
00:00:02] [%clk 00:00:04]} Kf6 {[%emt 00:00:03] [%clk 00:00:15]} 67. Nxc4 {[%emt
00:00:02] [%clk 00:00:03]} Rxc4 {[%emt 00:00:06] [%clk 00:00:11]} 68. Kf3 {[%clk
00:00:04]} Ra4 {[%emt 00:00:04] [%clk 00:00:10]} 69. Re1 {[%emt 00:00:03] [%clk
00:00:03]} Ra3+ {[%emt 00:00:02] [%clk 00:00:10]} 70. Kg4 {[%emt 00:00:01] [%clk
00:00:04]} Ra2 {[%emt 00:00:02] [%clk 00:00:10]} 71. Kf3 {[%emt 00:00:01] [%clk
00:00:04]} Rb2 {[%emt 00:00:02] [%clk 00:00:11]} 72. Re3 {[%emt 00:00:01] [%clk
00:00:04]} Rc2 {[%emt 00:00:02] [%clk 00:00:11]} 73. Re1 {[%emt 00:00:03] [%clk
00:00:04]} Rb2 {[%emt 00:00:03] [%clk 00:00:10]} 74. Re3 {[%clk 00:00:05]} Rb1
{[%clk 00:00:12]} 75. Re2 {[%emt 00:00:03] [%clk 00:00:04]} Rf1+ {[%emt
00:00:02] [%clk 00:00:13]} 76. Kg4 {[%clk 00:00:05]} Ke7 {[%clk 00:00:14]} 77.
Ra2 {[%emt 00:00:03] [%clk 00:00:04]} Kf6 {[%emt 00:00:04] [%clk 00:00:12]} 78.
Re2 {[%clk 00:00:04]} Rh1 {[%emt 00:00:03] [%clk 00:00:12]} 79. Kf3 {[%emt
00:00:02] [%clk 00:00:04]} Rh3+ {[%emt 00:00:02] [%clk 00:00:11]} 80. Kg4 {[%clk
00:00:05]} Rc3 {[%emt 00:00:01] [%clk 00:00:12]} 81. Re1 {[%emt 00:00:02] [%clk
00:00:05]} Rc4 {[%emt 00:00:05] [%clk 00:00:10]} 82. Kf3 {[%emt 00:00:02] [%clk
00:00:06]} Rc8 {[%emt 00:00:01] [%clk 00:00:09]} 83. Re2 {[%emt 00:00:04] [%clk
00:00:04]} Ra8 {[%emt 00:00:02] [%clk 00:00:09]} 84. Re1 {[%emt 00:00:01] [%clk
00:00:06]} Rh8 {[%emt 00:00:03] [%clk 00:00:07]} 85. Kg4 {[%emt 00:00:03] [%clk
00:00:04]} Rf8 {[%emt 00:00:03] [%clk 00:00:06]} 86. Kf3 {[%emt 00:00:03] [%clk
00:00:04]} Rc8 {[%emt 00:00:02] [%clk 00:00:06]} 87. Re2 {[%emt 00:00:01] [%clk
00:00:04]} Rc1 {[%emt 00:00:02] [%clk 00:00:06]} 88. Re3 {[%emt 00:00:02] [%clk
00:00:05]} Rf1+ {[%clk 00:00:08]} 89. Kg4 {[%clk 00:00:06]} Ke7 {[%clk
00:00:09]} 90. Ra3 {[%clk 00:00:07]} Re1 {[%emt 00:00:03] [%clk 00:00:08]} 91.
Kf3 {[%emt 00:00:02] [%clk 00:00:07]} Kd6 {[%emt 00:00:01] [%clk 00:00:10]} 92.
Ra5 {[%emt 00:00:06] [%clk 00:00:03]} Kc6 {[%emt 00:00:02] [%clk 00:00:09]} 93.
Kf2 {[%emt 00:00:03] [%clk 00:00:03]} Re4 {[%emt 00:00:02] [%clk 00:00:09]} 94.
Kf3 {[%emt 00:00:01] [%clk 00:00:04]} Kb6 {[%clk 00:00:11]} 95. Ra8 {[%emt
00:00:02] [%clk 00:00:05]} Kc5 {[%emt 00:00:03] [%clk 00:00:10]} 96. Ra5+ {[%emt
00:00:02] [%clk 00:00:05]} Kb4 {[%emt 00:00:01] [%clk 00:00:11]} 97. Ra6 {[%emt
00:00:01] [%clk 00:00:06]} Re1 {[%emt 00:00:05] [%clk 00:00:08]} 98. Rc6 {[%emt
00:00:02] [%clk 00:00:06]} Kb5 {[%emt 00:00:03] [%clk 00:00:07]} 99. Rc2 {[%clk
00:00:07]} d4 {[%emt 00:00:03] [%clk 00:00:05]} 100. Kf2 {[%clk 00:00:08]} Rh1
{[%emt 00:00:03] [%clk 00:00:05]} 101. Kf3 {[%emt 00:00:03] [%clk 00:00:07]} Re1
{[%emt 00:00:04] [%clk 00:00:03]} 102. Kf2 {[%emt 00:00:03] [%clk 00:00:06]} Re4
{[%clk 00:00:04]} 103. Kf3 {[%emt 00:00:01] [%clk 00:00:07]} Re3+ {[%clk
00:00:06]} 104. Kf2 {[%emt 00:00:01] [%clk 00:00:08]} Kb4 {[%clk 00:00:08]} 105.
Rc6 {[%emt 00:00:03] [%clk 00:00:06]} Kb3 {[%emt 00:00:03] [%clk 00:00:07]} 106.
Rc8 {[%emt 00:00:04] [%clk 00:00:04]} Re4 {[%emt 00:00:02] [%clk 00:00:07]} 107.
Kf3 {[%clk 00:00:05]} Re1 {[%clk 00:00:09]} 108. Kf2 {[%emt 00:00:03] [%clk
00:00:04]} Rh1 {[%emt 00:00:01] [%clk 00:00:09]} 109. Rc6 {[%emt 00:00:03] [%clk
00:00:04]} Rh2+ {[%emt 00:00:03] [%clk 00:00:08]} 110. Kf3 {[%clk 00:00:05]} d3
{[%emt 00:00:06] [%clk 00:00:04]} 111. Rxe6 {[%emt 00:00:04] [%clk 00:00:03]} d2
{[%clk 00:00:06]} 112. Rd6 {[%emt 00:00:01] [%clk 00:00:04]} Kc2 {[%clk
00:00:07]} 113. f5 {[%emt 00:00:02] [%clk 00:00:04]} Rh4 {[%emt 00:00:04] [%clk
00:00:06]} 114. Rc6+ {[%emt 00:00:02] [%clk 00:00:04]} Kd1 {[%emt 00:00:02]
[%clk 00:00:06]} 115. f6 {[%emt 00:00:03]} Rh6 {[%clk 00:00:06]} 116. Kf2 {[%emt
00:00:03] [%clk 00:00:04]} Rh5 {[%emt 00:00:02] [%clk 00:00:07]} 117. Kg2 {[%emt
00:00:03] [%clk 00:00:03]} Rf5 {[%clk 00:00:08]} 118. Kg3 {[%emt 00:00:01] [%clk
00:00:04]} Ke2 {[%emt 00:00:01] [%clk 00:00:09]} 119. Re6+ {[%clk 00:00:05]} Kd3
{[%emt 00:00:01] [%clk 00:00:10]} 120. Rd6+ {[%emt 00:00:02] [%clk 00:00:05]}
Ke3 {[%emt 00:00:02] [%clk 00:00:09]} 121. Re6+ {[%emt 00:00:02] [%clk
00:00:06]} Kd4 {[%clk 00:00:10]} 122. Rd6+ {[%emt 00:00:02] [%clk 00:00:05]} Ke3
{[%emt 00:00:03] [%clk 00:00:09]} 123. Re6+ {[%clk 00:00:06]} Kd3 {[%clk
00:00:10]} 124. Rd6+ {[%clk 00:00:08]} Ke2 {[%clk 00:00:12]} 125. Re6+ {[%clk
00:00:09]} Kd1 {[%emt 00:00:04] [%clk 00:00:10]} 126. Kg4 {[%emt 00:00:01] [%clk
00:00:09]} Rf1 {[%emt 00:00:06] [%clk 00:00:06]} 127. Kg5 {[%emt 00:00:02] [%clk
00:00:10]} Kc2 {[%clk 00:00:07]} 128. Rc6+ {[%emt 00:00:02] [%clk 00:00:10]} Kb3
{[%clk 00:00:09]} 129. Rd6 {[%emt 00:00:02] [%clk 00:00:10]} d1=Q {[%emt
00:00:04] [%clk 00:00:07]} 130. Rxd1 {[%emt 00:00:01] [%clk 00:00:11]} Rxd1
{[%clk 00:00:08]} 131. f7 {[%emt 00:00:01] [%clk 00:00:12]} Rf1 {[%emt 00:00:01]
[%clk 00:00:09]} 132. Kg6 {[%clk 00:00:13]} Rxf7 {[%emt 00:00:02] [%clk
00:00:09]} 133. Kxf7 {[%emt 00:00:01] [%clk 00:00:09]} 1/2-1/2

[Site "Europe Echecs"]

[Event "Championnat d'Europe de Blitz"]
[Date "2024.12.09"]
[White "Laurusas, Tomas"]
[Black "Oliinyk, Serafym"]
[WhiteElo "2578"]
[BlackElo "2207"]
[Round "7.33"]
[Result "1-0"]
[TimeControl "180+2"]

1. d4 {[%clk 00:03:03]} d5 {[%clk 00:03:04]} 2. c4 {[%clk 00:03:04]} e6 {[%clk
00:03:05]} 3. Nf3 {[%emt 00:00:03] [%clk 00:03:03]} Nf6 {[%clk 00:03:06]} 4. g3
{[%clk 00:03:04]} Be7 {[%clk 00:03:08]} 5. Bg2 {[%clk 00:03:05]} O-O {[%emt
00:00:01] [%clk 00:03:08]} 6. O-O {[%emt 00:00:02] [%clk 00:03:05]} dxc4 {[%emt
00:00:01] [%clk 00:03:09]} 7. Qc2 {[%emt 00:00:05] [%clk 00:03:03]} b5 {[%clk
00:03:11]} 8. a4 {[%emt 00:00:09] [%clk 00:02:56]} Bb7 {[%clk 00:03:12]} 9. axb5
{[%emt 00:00:05] [%clk 00:02:53]} a6 {[%clk 00:03:13]} 10. Nc3 {[%emt 00:00:09]
[%clk 00:02:46]} axb5 {[%emt 00:00:02] [%clk 00:03:14]} 11. Rxa8 {[%emt
00:00:01] [%clk 00:02:46]} Bxa8 {[%clk 00:03:15]} 12. Nxb5 {[%emt 00:00:01]
[%clk 00:02:47]} Bd5 {[%clk 00:03:16]} 13. Nc3 {[%emt 00:00:34] [%clk 00:02:15]}
Bxf3 {[%emt 00:00:01] [%clk 00:03:17]} 14. Bxf3 {[%emt 00:00:02] [%clk
00:02:15]} Qxd4 {[%clk 00:03:18]} 15. Be3 {[%emt 00:00:06] [%clk 00:02:12]} Qe5
{[%emt 00:00:02] [%clk 00:03:17]} 16. Qa4 {[%emt 00:00:07] [%clk 00:02:07]} Nd5
{[%emt 00:00:26] [%clk 00:02:53]} 17. Bd2 {[%emt 00:00:01] [%clk 00:02:08]} Nb6
{[%emt 00:00:06] [%clk 00:02:49]} 18. Qa7 {[%emt 00:00:16] [%clk 00:01:55]} Bd6
{[%emt 00:00:37] [%clk 00:02:14]} 19. Rd1 {[%emt 00:00:23] [%clk 00:01:33]} Rd8
{[%emt 00:00:17] [%clk 00:01:59]} 20. Bf4 {[%emt 00:00:16] [%clk 00:01:19]} Qc5
{[%emt 00:00:09] [%clk 00:01:52]} 21. Ne4 {[%emt 00:00:02] [%clk 00:01:19]} Qb5
{[%emt 00:01:30] [%clk 00:00:24]} 22. Nxd6 {[%emt 00:00:11] [%clk 00:01:09]}
cxd6 {[%emt 00:00:10] [%clk 00:00:17]} 23. Rxd6 {[%emt 00:00:04] [%clk
00:01:07]} Re8 {[%emt 00:00:16] [%clk 00:00:03]} 24. Rxb6 {[%emt 00:00:03] [%clk
00:01:06]} Qc5 {[%emt 00:00:02] [%clk 00:00:03]} 25. Rxb8 {[%emt 00:00:04] [%clk
00:01:04]} 1-0

[Site "Europe Echecs"]

[Event "Championnat d'Europe de Blitz"]
[Date "2024.12.09"]
[White "Pancevski, Filip"]
[Black "Kukk, Sander"]
[WhiteElo "2420"]
[BlackElo "2234"]
[Round "7.34"]
[Result "1-0"]
[TimeControl "180+2"]

1. e4 {[%emt 00:00:01] [%clk 00:03:02]} g6 {[%emt 00:00:01] [%clk 00:03:03]} 2.
d4 {[%emt 00:00:03] [%clk 00:03:03]} Bg7 {[%clk 00:03:04]} 3. Nc3 {[%clk
00:03:04]} d6 {[%emt 00:00:01] [%clk 00:03:05]} 4. Be3 {[%clk 00:03:05]} Nf6
{[%emt 00:00:01] [%clk 00:03:05]} 5. h3 {[%clk 00:03:07]} O-O {[%emt 00:00:03]
[%clk 00:03:05]} 6. g4 {[%clk 00:03:08]} e5 {[%emt 00:00:06] [%clk 00:03:02]} 7.
Bg2 {[%emt 00:00:05] [%clk 00:03:05]} exd4 {[%emt 00:00:02] [%clk 00:03:02]} 8.
Bxd4 {[%emt 00:00:01] [%clk 00:03:05]} Nc6 {[%emt 00:00:02] [%clk 00:03:02]} 9.
Be3 {[%clk 00:03:06]} Re8 {[%clk 00:03:03]} 10. Nge2 {[%emt 00:00:01] [%clk
00:03:07]} Nd7 {[%emt 00:00:32] [%clk 00:02:33]} 11. O-O {[%emt 00:00:07] [%clk
00:03:03]} Nc5 {[%emt 00:00:10] [%clk 00:02:25]} 12. Qd2 {[%emt 00:00:06] [%clk
00:02:58]} a5 {[%emt 00:00:05] [%clk 00:02:22]} 13. Rad1 {[%emt 00:00:13] [%clk
00:02:48]} Be6 {[%emt 00:00:06] [%clk 00:02:18]} 14. b3 {[%emt 00:00:14] [%clk
00:02:36]} Qe7 {[%emt 00:00:25] [%clk 00:01:54]} 15. Bg5 {[%emt 00:00:20] [%clk
00:02:18]} Bf6 {[%emt 00:00:07] [%clk 00:01:49]} 16. Be3 {[%emt 00:00:02] [%clk
00:02:18]} Rad8 {[%emt 00:00:07] [%clk 00:01:44]} 17. f4 {[%emt 00:00:01] [%clk
00:02:18]} Bg7 {[%emt 00:00:49] [%clk 00:00:58]} 18. Ng3 {[%emt 00:00:51] [%clk
00:01:28]} Qh4 {[%emt 00:00:13] [%clk 00:00:47]} 19. Bf2 {[%emt 00:00:06] [%clk
00:01:24]} Qf6 {[%emt 00:00:10] [%clk 00:00:39]} 20. Nb5 {[%emt 00:00:22] [%clk
00:01:04]} Qe7 {[%emt 00:00:07] [%clk 00:00:33]} 21. c3 {[%emt 00:00:27] [%clk
00:00:40]} Bc8 {[%emt 00:00:04] [%clk 00:00:31]} 22. Kh2 {[%emt 00:00:07] [%clk
00:00:34]} Nb8 {[%emt 00:00:12] [%clk 00:00:21]} 23. Qc2 {[%emt 00:00:06] [%clk
00:00:30]} Nba6 {[%emt 00:00:05] [%clk 00:00:18]} 24. Nd4 {[%emt 00:00:10] [%clk
00:00:22]} c6 {[%emt 00:00:02] [%clk 00:00:18]} 25. Rde1 {[%emt 00:00:03] [%clk
00:00:20]} Nc7 {[%emt 00:00:01] [%clk 00:00:19]} 26. Qd2 {[%emt 00:00:09] [%clk
00:00:13]} Bh6 {[%emt 00:00:02] [%clk 00:00:19]} 27. Be3 {[%emt 00:00:03] [%clk
00:00:12]} Qh4 {[%emt 00:00:02] [%clk 00:00:20]} 28. g5 {[%emt 00:00:05] [%clk
00:00:09]} Bg7 {[%emt 00:00:07] [%clk 00:00:15]} 29. Bf2 {[%emt 00:00:01] [%clk
00:00:10]} N7e6 {[%emt 00:00:03] [%clk 00:00:14]} 30. Nge2 {[%emt 00:00:07]
[%clk 00:00:04]} Qh5 {[%emt 00:00:04] [%clk 00:00:12]} 31. Bf3 {[%emt 00:00:01]
[%clk 00:00:05]} Nxd4 {[%emt 00:00:10] [%clk 00:00:05]} 32. Bxh5 {[%emt
00:00:01] [%clk 00:00:05]} Nxe2 {[%emt 00:00:03] [%clk 00:00:03]} 33. Bxe2
{[%emt 00:00:02] [%clk 00:00:06]} Nxe4 {[%emt 00:00:01] [%clk 00:00:04]} 34. Qc2
{[%clk 00:00:07]} Bxc3 {[%emt 00:00:02] [%clk 00:00:05]} 35. Bf3 {[%emt
00:00:05] [%clk 00:00:04]} Bxe1 {[%emt 00:00:03] [%clk 00:00:04]} 36. Rxe1
{[%clk 00:00:06]} d5 {[%emt 00:00:01] [%clk 00:00:05]} 37. Bxe4 {[%clk
00:00:07]} dxe4 {[%clk 00:00:06]} 38. Rxe4 {[%emt 00:00:01] [%clk 00:00:08]} Rf8
{[%emt 00:00:01] [%clk 00:00:07]} 39. Rd4 {[%emt 00:00:02] [%clk 00:00:08]} Bf5
{[%emt 00:00:02] [%clk 00:00:07]} 40. Qd2 {[%emt 00:00:01] [%clk 00:00:09]} Rde8
{[%clk 00:00:08]} 41. Qxa5 {[%emt 00:00:05] [%clk 00:00:06]} Re2 {[%emt
00:00:01] [%clk 00:00:09]} 42. Rd2 {[%clk 00:00:07]} Re4 {[%emt 00:00:01] [%clk
00:00:10]} 43. Kg3 {[%emt 00:00:03] [%clk 00:00:05]} h5 {[%emt 00:00:02] [%clk
00:00:10]} 44. gxh6 {[%emt 00:00:02] [%clk 00:00:05]} Kh7 {[%clk 00:00:11]} 45.
Bd4 {[%emt 00:00:04] [%clk 00:00:03]} Kxh6 {[%emt 00:00:01] [%clk 00:00:12]} 46.
Qc5 {[%emt 00:00:02] [%clk 00:00:03]} Rfe8 {[%emt 00:00:02] [%clk 00:00:12]} 47.
Be5 {[%clk 00:00:05]} Kh7 {[%emt 00:00:03] [%clk 00:00:11]} 48. Qd6 {[%clk
00:00:06]} Be6 {[%emt 00:00:02] [%clk 00:00:10]} 49. Qc7 {[%emt 00:00:01] [%clk
00:00:07]} b5 {[%emt 00:00:04] [%clk 00:00:08]} 50. Qxc6 {[%emt 00:00:01] [%clk
00:00:07]} Rc8 {[%clk 00:00:10]} 51. Qxe4 {[%emt 00:00:03] [%clk 00:00:06]} 1-0

[Site "Europe Echecs"]

[Event "Championnat d'Europe de Blitz"]
[Date "2024.12.09"]
[White "Bulmaga, Irina"]
[Black "Zajic, Milan"]
[WhiteElo "2386"]
[BlackElo "2392"]
[Round "7.36"]
[Result "0-1"]
[TimeControl "180+2"]

1. e4 {[%clk 00:03:02]} g6 {[%emt 00:00:04] [%clk 00:03:03]} 2. d4 {[%clk
00:03:03]} Bg7 {[%emt 00:00:02] [%clk 00:03:03]} 3. Nc3 {[%emt 00:00:02] [%clk
00:03:03]} a6 {[%emt 00:00:02] [%clk 00:03:04]} 4. a4 {[%emt 00:00:01] [%clk
00:03:04]} d6 {[%emt 00:00:02] [%clk 00:03:03]} 5. Nf3 {[%emt 00:00:02] [%clk
00:03:04]} Nd7 {[%emt 00:00:02] [%clk 00:03:03]} 6. h3 {[%emt 00:00:03] [%clk
00:03:02]} c5 {[%emt 00:00:10] [%clk 00:02:56]} 7. Be3 {[%emt 00:00:15] [%clk
00:02:50]} cxd4 {[%emt 00:00:02] [%clk 00:02:55]} 8. Nxd4 {[%emt 00:00:03] [%clk
00:02:49]} Ngf6 {[%emt 00:00:02] [%clk 00:02:56]} 9. Nb3 {[%emt 00:00:08] [%clk
00:02:43]} O-O {[%emt 00:00:05] [%clk 00:02:52]} 10. a5 {[%emt 00:00:03] [%clk
00:02:42]} b5 {[%emt 00:00:15] [%clk 00:02:39]} 11. axb6 {[%emt 00:00:08] [%clk
00:02:37]} Nxb6 {[%emt 00:00:02] [%clk 00:02:39]} 12. Na5 {[%emt 00:00:04] [%clk
00:02:35]} Qc7 {[%emt 00:00:22] [%clk 00:02:19]} 13. Be2 {[%emt 00:00:03] [%clk
00:02:33]} Be6 {[%emt 00:00:03] [%clk 00:02:17]} 14. O-O {[%emt 00:00:15] [%clk
00:02:21]} Rfb8 {[%emt 00:00:13] [%clk 00:02:06]} 15. Qd3 {[%emt 00:00:10] [%clk
00:02:13]} Nfd7 {[%emt 00:00:06] [%clk 00:02:03]} 16. Bd4 {[%emt 00:00:07] [%clk
00:02:08]} Ne5 {[%emt 00:00:12] [%clk 00:01:53]} 17. Bxe5 {[%emt 00:00:08] [%clk
00:02:03]} dxe5 {[%emt 00:00:35] [%clk 00:01:19]} 18. Qe3 {[%emt 00:00:40] [%clk
00:01:25]} Rd8 {[%emt 00:00:10] [%clk 00:01:11]} 19. Rfd1 {[%emt 00:00:10] [%clk
00:01:17]} Rd4 {[%emt 00:00:02] [%clk 00:01:12]} 20. Nb3 {[%emt 00:00:08] [%clk
00:01:11]} Bxb3 {[%emt 00:00:06] [%clk 00:01:07]} 21. cxb3 {[%emt 00:00:01]
[%clk 00:01:12]} Qb7 {[%emt 00:00:04] [%clk 00:01:06]} 22. Ra3 {[%emt 00:00:21]
[%clk 00:00:52]} Nd7 {[%emt 00:00:15] [%clk 00:00:54]} 23. Bc4 {[%emt 00:00:09]
[%clk 00:00:45]} e6 {[%emt 00:00:06] [%clk 00:00:50]} 24. Rda1 {[%emt 00:00:25]
[%clk 00:00:22]} Bf8 {[%emt 00:00:17] [%clk 00:00:34]} 25. Rxa6 {[%emt 00:00:04]
[%clk 00:00:20]} Rxa6 26. Bxa6 {[%emt 00:00:04] [%clk 00:00:18]} Qxb3 {[%emt
00:00:05] [%clk 00:00:33]} 27. Qe2 {[%emt 00:00:06] [%clk 00:00:14]} Bh6 {[%emt
00:00:17] [%clk 00:00:18]} 28. Bb5 {[%emt 00:00:04] [%clk 00:00:12]} Nf6 {[%emt
00:00:10] [%clk 00:00:10]} 29. Ra8+ {[%emt 00:00:03] [%clk 00:00:10]} Kg7 {[%emt
00:00:01] [%clk 00:00:11]} 30. Bd3 {[%emt 00:00:06] [%clk 00:00:06]} Bc1 {[%emt
00:00:02] [%clk 00:00:11]} 31. Ra2 {[%emt 00:00:03] [%clk 00:00:04]} Bxb2 {[%emt
00:00:03] [%clk 00:00:10]} 32. Rxb2 {[%emt 00:00:02] [%clk 00:00:04]} Qxc3
{[%emt 00:00:01] [%clk 00:00:11]} 33. Bb1 {[%emt 00:00:04]} 0-1

[Site "Europe Echecs"]